[Event "CZE-ch U16 Girls 2023"]
[Site "Teplice"]
[Date "2023.03.17"]
[Round "8.12"]
[White "Foldynova, Julie"]
[Black "Seda, Michaela"]
[Result "1/2-1/2"]
[ECO "C01"]
[WhiteElo "1100"]
[BlackElo "1610"]
[Annotator "NA RC COMBH"]
[PlyCount "127"]
[EventDate "2023.03.09"]
[EventType "swiss"]
[EventCountry "CZE"]
[SourceTitle "playchess.com"]
[Source "ChessBase"]
[SourceQuality "1"]
[TimeControl "40/5400+30:1800+30"]

1. e4 {[%emt 0:00:04]} e6 {[%emt 0:00:03]} 2. d4 {[%emt 0:00:17]} d5 {[%emt 0:00:08]} 3. exd5 {[%emt 0:00:15]} exd5 {[%emt 0:00:29]} 4. Nf3 {[%emt 0:00:29]} Bd6 {[%emt 0:00:11]} 5. Bd3 {[%emt 0:00:26]} Bg4 {[%emt 0:00:24]} 6. h3 {[%emt 0:00:59]} Bh5 {[%emt 0:00:09]} 7. O-O {[%emt 0:00:51]} Ne7 {[%emt 0:01:02]} 8. Re1 {[%emt 0:00:29]} c6 {[%emt 0:00:57]} 9. Bg5 {[%emt 0:01:10]} f6 {[%emt 0:00:24]} 10. Bh4 {[%emt 0:00:07]} g5 {[%emt 0:02:21]} 11. Bg3 {[%emt 0:02:01]} Bxg3 {[%emt 0:00:27]} 12. fxg3 {[%emt 0:00:43]} Kf7 {[%emt 0:00:42]} 13. g4 {[%emt 0:01:11]} Bg6 {[%emt 0:00:24]} 14. c3 {[%emt 0:03:26]} Nd7 {[%emt 0:01:52]} 15. Qe2 {[%emt 0:01:38]} Bxd3 {[%emt 0:00:30]} 16. Qxd3 {[%emt 0:00:25]} Ng6 {[%emt 0:00:58]} 17. g3 {[%emt 0:01:03]} Qc7 {[%emt 0:00:43]} 18. Kg2 {[%emt 0:00:29]} h5 {[%emt 0:01:08]} 19. Rf1 {[%emt 0:03:45]} Kg7 {[%emt 0:00:46]} 20. gxh5 {[%emt 0:05:35]} Rxh5 {[%emt 0:00:10]} 21. Qf5 {[%emt 0:01:46]} Rah8 {[%emt 0:01:28]} 22. Nbd2 {[%emt 0:03:20]} g4 {[%emt 0:01:20]} 23. Qxg4 {[%emt 0:09:13]} f5 {[%emt 0:00:18]} 24. Ng5 {[%emt 0:00:12]} fxg4 {[%emt 0:08:50]} 25. Ne6+ {[%emt 0:00:08]} Kg8 {[%emt 0:00:53]} 26. Nxc7 {[%emt 0:00:45]} Rxh3 {[%emt 0:00:27]} 27. Rh1 {[%emt 0:01:07]} Rxh1 {[%emt 0:00:08]} 28. Rxh1 {[%emt 0:00:02]} Rxh1 {[%emt 0:00:12]} 29. Kxh1 {[%emt 0:00:06]} Kf7 {[%emt 0:00:23]} 30. c4 {[%emt 0:02:09]} dxc4 {[%emt 0:01:28]} 31. Nxc4 {[%emt 0:00:43]} Nb6 {[%emt 0:00:45]} 32. Nxb6 {[%emt 0:01:08]} axb6 {[%emt 0:00:09]} 33. d5 {[%emt 0:00:53]} Ke7 {[%emt 0:01:04]} 34. dxc6 {[%emt 0:00:11]} bxc6 {[%emt 0:00:13]} 35. a4 {[%emt 0:00:30]} Kd6 {[%emt 0:00:47]} 36. Na6 {[%emt 0:00:23]} Ne5 {[%emt 0:00:26]} 37. Kg2 {[%emt 0:01:00]} Nc4 {[%emt 0:01:06]} 38. b4 {[%emt 0:01:07]} Nb2 {[%emt 0:00:28]} 39. a5 {[%emt 0:01:49]} bxa5 {[%emt 0:00:12]} 40. bxa5 {[%emt 0:00:20]} Nc4 {[%emt 0:00:06]} 41. Kf2 {[%emt 0:30:28]} Nxa5 {[%emt 0:30:11]} 42. Ke3 {[%emt 0:00:28]} Nc4+ {[%emt 0:01:21]} 43. Ke4 {[%emt 0:02:46]} Ne5 {[%emt 0:01:52]} 44. Kf4 {[%emt 0:00:59]} Ke6 {[%emt 0:03:11]} 45. Nc5+ {[%emt 0:01:23]} Kd5 {[%emt 0:00:54]} 46. Ne4 {[%emt 0:01:02]} Nd3+ {[%emt 0:03:15]} 47. Ke3 {[%emt 0:00:55]} Ne5 {[%emt 0:03:06]} 48. Kf4 {[%emt 0:00:44]} Ng6+ {[%emt 0:02:38]} 49. Kf5 {[%emt 0:01:23]} Kd4 {[%emt 0:02:24]} 50. Nd6 {[%emt 0:02:36]} Ne5 {[%emt 0:01:24]} 51. Kf4 {[%emt 0:04:07]} c5 {[%emt 0:01:23]} 52. Nf5+ {[%emt 0:03:03]} Kd5 {[%emt 0:00:49]} 53. Ne3+ {[%emt 0:00:43]} Kd4 {[%emt 0:01:36]} 54. Nf5+ {[%emt 0:01:44]} Kd5 {[%emt 0:00:28]} 55. Ne3+ {[%emt 0:00:15]} Ke6 {[%emt 0:00:35]} 56. Nxg4 {[%emt 0:01:26]} Nxg4 {[%emt 0:00:27]} 57. Kxg4 {[%emt 0:00:09]} Kd5 {[%emt 0:01:12]} 58. Kf3 {[%emt 0:00:12]} Kd4 {[%emt 0:00:38]} 59. g4 {[%emt 0:01:16]} c4 {[%emt 0:00:10]} 60. Ke2 {[%emt 0:01:31]} c3 {[%emt 0:01:52]} 61. Kd1 {[%emt 0:00:25]} Ke4 {[%emt 0:01:55]} 62. g5 {[%emt 0:00:24]} Kf5 {[%emt 0:00:06]} 63. Kc2 {[%emt 0:00:14]} Kxg5 {[%emt 0:00:05]} 64. Kxc3 {[%emt 0:00:09]} 1/2-1/2